fUSD/lending_fUSD_20250814
["ID","MTS","AMOUNT","RATE_DAILY","PERIOD"]
[379129373,1755151979809,-400.0,0.00058082,120]
[379129374,1755151979820,-400.0,0.00058082,120]
[379129375,1755151979831,-831.0,0.00058082,120]
[379129376,1755151979840,-412.41,0.00058082,120]
[379129377,1755151979850,-654.424317,0.00058082,120]
[379129378,1755151979861,-510.65,0.00058082,120]
[379129379,1755151979873,-400.0,0.00058082,120]
[379129380,1755151979884,-1013.506298,0.00058082,120]
[379129381,1755151979895,-400.0,0.00058082,120]
[379129382,1755151979904,-923.09,0.00058082,120]
[379129383,1755151979913,-400.0,0.00058082,120]
[379129384,1755151979923,-763.46,0.00058082,120]
[379129385,1755151979932,-276.531266,0.00058082,120]
[379129386,1755151979941,-400.0,0.00058082,120]
[379129387,1755151979951,-1059.25,0.00058082,120]
[379129388,1755151979964,-2247.15,0.00058082,120]
[379129389,1755151979973,-400.0,0.00058082,120]
[379129390,1755151979982,-757.93,0.00058082,120]
[379129391,1755151979992,-400.0,0.00058082,120]
[379129392,1755151980002,-495.55,0.00058082,120]
[379129393,1755151980011,-1166.88,0.00058082,120]
[379129394,1755151980020,-400.0,0.00058082,120]
[379129395,1755151980030,-400.0,0.00058082,120]
[379129396,1755151980040,-1435.74,0.00058082,120]
[379129397,1755151980050,-3108.2,0.00058082,120]
[379129398,1755151980060,-400.0,0.00058082,120]
[379129399,1755151980070,-2535.34,0.00058082,120]
[379129400,1755151980079,-1075.79,0.00058082,120]
[379129401,1755151980089,-400.0,0.00058082,120]
[379129402,1755151980099,-400.0,0.00058082,120]
[379129403,1755151980108,-2361.73,0.00058082,120]
[379129404,1755151980117,-491.31,0.00058082,120]
[379129405,1755151980127,-423.58,0.00058082,120]
[379129406,1755151980136,-500.0,0.00058082,10]
[379129407,1755151980146,-849.81,0.00058082,120]
[379129408,1755151980156,-400.0,0.00058082,120]
[379129409,1755151980165,-400.0,0.00058082,120]
[379129410,1755151980175,-764.83,0.00058082,120]
[379129411,1755151980184,-677.79,0.00058082,120]
[379129412,1755151980194,-338.1240037,0.00058082,120]
[379129413,1755151980204,-400.0,0.00058082,120]
[379129414,1755151980213,-400.0,0.00058082,120]
[379129415,1755151980222,-735.32,0.00058082,120]
[379129416,1755151980232,-400.0,0.00058082,120]
[379129417,1755151980241,-1968.98,0.00058082,120]
[379129418,1755151980251,-953.58,0.00058082,120]
[379129419,1755151980261,-919.31,0.00058082,120]
[379129420,1755151980270,-400.0,0.00058082,120]
[379129421,1755151980281,-926.46,0.00058082,120]
[379129422,1755151980290,-400.0,0.00058082,120]
[379129423,1755151980300,-400.0,0.00058082,120]
[379129424,1755151980309,-1638.37,0.00058082,120]
[379129425,1755151980319,-2344.2,0.00058082,120]
[379129426,1755151980328,-738.18,0.00058082,120]
[379129427,1755151980338,-300.0,0.00058082,120]
[379129428,1755151980347,-1830.88,0.00058082,120]
[379129429,1755151980356,-400.0,0.00058082,120]
[379129430,1755151980366,-400.0,0.00058082,120]
[379129431,1755151980375,-2134.61,0.00058082,120]
[379129432,1755151980385,-400.0,0.00058082,120]
[379129433,1755151980395,-400.0,0.00058082,120]
[379129434,1755151980404,-400.0,0.00058082,120]
[379129435,1755151980414,-1458.72,0.00058082,120]
[379129436,1755151980424,-1778.19,0.00058082,120]
[379129437,1755151980433,-400.0,0.00058082,120]
[379129438,1755151980443,-400.0,0.00058082,120]
[379129439,1755151980452,-400.0,0.00058082,120]
[379129440,1755151980461,-494.38,0.00058082,120]
[379129441,1755151980471,-1224.65,0.00058082,120]
[379129442,1755151980480,-416.33,0.00058082,120]
[379129443,1755151980489,-400.0,0.00058082,16]
[379129444,1755151980498,-400.0,0.00058082,120]
[379129445,1755151980507,-1483.14,0.00058082,120]
[379129446,1755151980517,-400.0,0.00058082,120]
[379129447,1755151980526,-663.87,0.00058082,120]
[379129448,1755151980535,-400.0,0.00058082,120]
[379129449,1755151980544,-400.0,0.00058082,120]
[379129450,1755151980554,-400.0,0.00058082,120]
[379129451,1755151980563,-683.0,0.00058082,120]
[379129452,1755151980573,-898.77,0.00058082,60]
[379129453,1755151980582,-853.09,0.00058082,120]
[379129454,1755151980591,-400.0,0.00058082,14]
[379129455,1755151980600,-400.0,0.00058082,120]
[379129456,1755151980610,-682.62,0.00058082,120]
[379129457,1755151980620,-525.69,0.00058082,120]
[379129458,1755151980629,-400.0,0.00058082,120]
[379129459,1755151980639,-400.0,0.00058082,30]
[379129460,1755151980648,-405.08895677,0.00058082,120]
[379129461,1755151980658,-400.0,0.00058082,120]
[379129462,1755151980668,-439.52,0.00058082,120]
[379129463,1755151980679,-400.0,0.00058082,120]
[379129464,1755151980688,-408.74,0.00058082,120]
[379129465,1755151980698,-400.0,0.00058082,120]
[379129466,1755151980707,-633.09,0.00058082,120]
[379129467,1755151980716,-749.16,0.00058082,120]
[379129468,1755151980725,-400.0,0.00058082,120]
[379129469,1755151980735,-400.0,0.00058082,120]
[379129470,1755151980744,-549.77,0.00058082,120]
[379129471,1755151980753,-400.0,0.00058082,120]
[379129472,1755151980762,-1613.96,0.00058082,120]
[379129473,1755151980771,-1832.53,0.00058082,120]
[379129474,1755151980780,-1063.66,0.00058082,120]
[379129475,1755151980789,-400.0,0.00058082,120]
[379129476,1755151980799,-400.0,0.00058082,120]
[379129477,1755151980807,-400.0,0.00058082,120]
[379129478,1755151980817,-526.65,0.00058082,120]
[379129479,1755151980827,-400.0,0.00058082,120]
[379129480,1755151980836,-400.0,0.00058082,120]
[379129481,1755151980846,-400.0,0.00058082,120]
[379129482,1755151980856,-413.05,0.00058082,120]
[379129483,1755151980865,-400.0,0.00058082,120]
[379129484,1755151980875,-888.91,0.00058082,120]
[379129485,1755151980884,-1124.78,0.00058082,120]
[379129486,1755151980894,-483.51,0.00058082,120]
[379129487,1755151980903,-400.0,0.00058082,120]
[379129488,1755151980912,-400.0,0.00058082,120]
[379129489,1755151980922,-518.91,0.00058082,120]
[379129490,1755151980932,-537.81,0.00058082,120]
[379129491,1755151980941,-1231.11,0.00058082,120]
[379129492,1755151980955,-400.0,0.00058082,120]
[379129493,1755151980965,-400.0,0.00058082,120]
[379129494,1755151980974,-417.32,0.00058082,120]
[379129495,1755151980983,-400.0,0.00058082,120]
[379129496,1755151980994,-1207.1,0.00058082,120]
[379129497,1755151981003,-400.0,0.00058082,120]
[379129498,1755151981012,-417.19,0.00058082,120]
[379129499,1755151981024,-400.0,0.00058082,120]
[379129500,1755151981035,-931.84,0.00058082,120]
[379129501,1755151981044,-400.0,0.00058082,120]
[379129502,1755151981054,-193.3479874,0.00058082,120]
[379129503,1755151981064,-400.0,0.00058082,120]
[379129504,1755151981075,-400.0,0.00058082,120]
[379129505,1755151981085,-400.0,0.00058082,120]
[379129506,1755151981094,-1319.73,0.00058082,120]
[379129507,1755151981103,-400.0,0.00058082,120]
[379129508,1755151981113,-2169.82,0.00058082,120]
[379129509,1755151981122,-400.0,0.00058082,120]
[379129510,1755151981132,-400.0,0.00058082,120]
[379129511,1755151981142,-400.0,0.00058082,120]
[379129512,1755151981152,-843.53,0.00058082,120]
[379129513,1755151981161,-400.0,0.00058082,120]
[379129514,1755151981171,-400.0,0.00058082,120]
[379129515,1755151981181,-400.0,0.00058082,120]
[379129516,1755151981191,-507.06,0.00058082,120]
[379129517,1755151981201,-400.0,0.00058082,120]
[379129518,1755151981211,-1647.52,0.00058082,120]
[379129519,1755151981220,-1255.35,0.00058082,120]
[379129520,1755151981230,-435.47,0.00058082,120]
[379129521,1755151981240,-400.0,0.00058082,120]
[379129522,1755151981249,-2343.63,0.00058082,120]
[379129523,1755151981258,-400.0,0.00058082,120]
[379129524,1755151981268,-1336.7,0.00058082,120]
[379129525,1755151981278,-1524.01,0.00058082,120]
[379129526,1755151981288,-400.0,0.00058082,120]
[379129527,1755151981297,-400.0,0.00058082,120]
[379129528,1755151981307,-1100.6,0.00058082,120]
[379129529,1755151981317,-400.0,0.00058082,120]
[379129530,1755151981327,-2359.32,0.00058082,120]
[379129531,1755151981336,-536.21,0.00058082,120]
[379129532,1755151981346,-591.66,0.00058082,120]
[379129533,1755151981356,-400.0,0.00058082,120]
[379129534,1755151981365,-400.0,0.00058082,120]
[379129535,1755151981375,-400.0,0.00058082,120]
[379129536,1755151981385,-400.0,0.00058082,120]
[379129537,1755151981395,-1196.29,0.00058082,120]
[379129538,1755151981405,-680.02,0.00058082,120]
[379129539,1755151981415,-511.48,0.00058082,120]
[379129540,1755151981428,-1028.17,0.00058082,120]
[379129541,1755151981437,-450.14,0.00058082,120]
[379129542,1755151981447,-332.0,0.00058082,120]
[379129543,1755151981456,-512.79,0.00058082,120]
[379129544,1755151981466,-880.18,0.00058082,120]
[379129545,1755151981476,-411.91,0.00058082,120]
[379129546,1755151981486,-400.0,0.00058082,120]
[379129547,1755151981495,-400.0,0.00058082,120]
[379129548,1755151981504,-2065.78,0.00058082,120]
[379129549,1755151981514,-2269.12,0.00058082,120]
[379129550,1755151981523,-3933.34,0.00058082,120]
[379129551,1755151981533,-430.86,0.00058082,120]
[379129552,1755151981542,-400.0,0.00058082,120]
[379129553,1755151981552,-400.0,0.00058082,120]
[379129554,1755151981561,-567.22,0.00058082,2]
[379129555,1755151981571,-3388.22,0.00058082,120]
[379129556,1755151981581,-400.0,0.00058082,120]
[379129557,1755151981591,-706.75,0.00058082,120]
[379129558,1755151981601,-806.62,0.00058082,120]
[379129559,1755151981610,-3022.65,0.00058082,120]
[379129560,1755151981619,-400.0,0.00058082,120]
[379129561,1755151981629,-1072.62,0.00058082,120]
[379129562,1755151981638,-474.98,0.00058082,120]
[379129563,1755151981647,-400.0,0.00058082,120]
[379129564,1755151981657,-320.44890203,0.00058082,120]
[379129565,1755151981666,-400.0,0.00058082,120]
[379129566,1755151981678,-400.0,0.00058082,120]
[379129567,1755151981688,-403.94454918,0.00058082,120]
[379129568,1755151981697,-400.0,0.00058082,120]
[379129569,1755151981706,-400.0,0.00058082,120]
[379129570,1755151981715,-400.0,0.00058082,120]
[379129571,1755151981725,-400.0,0.00058082,120]
[379129572,1755151981734,-500.0,0.00058082,120]
[379129573,1755151981744,-400.0,0.00058082,2]
[379129574,1755151981753,-2669.21,0.00058082,120]
[379129575,1755151981763,-400.3,0.00058082,120]
[379129576,1755151981774,-400.0,0.00058082,120]
[379129577,1755151981783,-1124.34,0.00058082,120]
[379129578,1755151981793,-400.0,0.00058082,120]
[379129579,1755151981802,-400.0,0.00058082,120]
[379129580,1755151981811,-400.0,0.00058082,120]
[379129581,1755151981821,-1646.35,0.00058082,120]
[379129582,1755151981830,-466.95552308,0.00058082,120]
[379129583,1755151981839,-400.0,0.00058082,30]
[379129584,1755151981848,-986.63,0.00058082,120]
[379129585,1755151981858,-574.51,0.00058082,120]
[379129586,1755151981867,-1010.52,0.00058082,120]
[379129587,1755151981876,-3068.68,0.00058082,120]
[379129588,1755151981886,-400.0,0.00058082,120]
[379129589,1755151981896,-1157.99,0.00058082,120]
[379129590,1755151981906,-1280.68,0.00058082,120]
[379129591,1755151981915,-631.96,0.00058082,120]
[379129592,1755151981927,-400.0,0.00058082,120]
[379129593,1755151981936,-442.43,0.00058082,120]
[379129594,1755151981946,-1231.47,0.00058082,120]
[379129595,1755151981957,-2509.4,0.00058082,120]
[379129596,1755151981965,-930.15,0.00058082,120]
[379129597,1755151981975,-400.0,0.00058082,120]
[379129598,1755151981984,-474.55,0.00058082,120]
[379129599,1755151981994,-400.0,0.00058082,120]
[379129600,1755151982003,-542.34,0.00058082,120]
[379129601,1755151982013,-409.66677322,0.00058082,120]
[379129602,1755151982023,-400.0,0.00058082,120]
[379129603,1755151982033,-4323.94,0.00058082,120]
[379129604,1755151982042,-1001.49,0.00058082,120]
[379129605,1755151982051,-400.0,0.00058082,120]
[379129606,1755151982061,-1026.06,0.00058082,120]
[379129607,1755151982070,-2393.33,0.00058082,120]
[379129608,1755151982080,-774.99,0.00058082,120]
[379129609,1755151982089,-209.9797038,0.00058082,120]
[379129610,1755151982098,-4246.54,0.00058082,120]
[379129611,1755151982108,-400.0,0.00058082,120]
[379129612,1755151982118,-404.82827393,0.00058082,120]
[379129613,1755151982127,-404.82827393,0.00058082,120]
[379129614,1755151982136,-2333.02,0.00058082,120]
[379129615,1755151982145,-522.19,0.00058082,120]
[379129616,1755151982155,-400.0,0.00058082,120]
[379129617,1755151982165,-524.14,0.00058082,120]
[379129618,1755151982175,-481.66,0.00058082,120]
[379129619,1755151982185,-400.0,0.00058082,120]
[379129620,1755151982195,-400.0,0.00058082,120]
[379129621,1755151982204,-3378.52,0.00058082,120]
[379129622,1755151982214,-1270.22,0.00058082,120]
[379129623,1755151982223,-400.0,0.00058082,120]
[379129624,1755151982233,-471.19,0.00058082,120]
[379129625,1755151982242,-596.35,0.00058082,120]
[379129626,1755151982251,-400.0,0.00058082,120]
[379129627,1755151982261,-400.0,0.00058082,120]
[379129628,1755151982272,-2137.2,0.00058082,120]
[379129629,1755151982281,-784.0,0.00058082,120]
[379129630,1755151982291,-400.0,0.00058082,120]
[379129631,1755151982302,-1201.9,0.00058082,120]
[379129632,1755151982312,-4803.22,0.00058082,120]
[379129633,1755151982323,-400.0,0.00058082,120]
[379129634,1755151982333,-2422.17,0.00058082,120]
[379129635,1755151982342,-400.0,0.00058082,120]
[379129636,1755151982352,-400.0,0.00058082,120]
[379129637,1755151982363,-806.69,0.00058082,120]
[379129638,1755151982373,-415.24,0.00058082,2]
[379129639,1755151982383,-756.82,0.00058082,120]
[379129640,1755151982393,-776.05,0.00058082,120]
[379129641,1755151982402,-400.0,0.00058082,120]
[379129642,1755151982412,-737.75,0.00058082,120]
[379129643,1755151982425,-1099.84,0.00058082,120]
[379129644,1755151982437,-2190.42,0.00058082,120]
[379129645,1755151982447,-443.25,0.00058082,120]
[379129646,1755151982457,-452.45,0.00058082,120]
[379129647,1755151982467,-400.0,0.00058082,120]
[379129648,1755151982477,-166.362325,0.00058082,120]
[379129649,1755151982487,-1674.15,0.00058082,120]
[379129650,1755151982497,-3816.16,0.00058082,120]
[379129651,1755151982508,-2600.42,0.00058082,120]
[379129652,1755151982518,-1324.56,0.00058082,120]
[379129653,1755151982528,-500.0,0.00058082,120]
[379129654,1755151982538,-400.0,0.00058082,120]
[379129655,1755151982548,-3126.37,0.00058082,120]
[379129656,1755151982558,-400.0,0.00058082,120]
[379129657,1755151982567,-4802.33,0.00058082,120]
[379129658,1755151982577,-532.53,0.00058082,120]
[379129659,1755151982587,-738.08,0.00058082,120]
[379129660,1755151982597,-400.0,0.00058082,120]
[379129661,1755151982607,-400.0,0.00058082,120]
[379129662,1755151982617,-1432.3,0.00058082,120]
[379129663,1755151982626,-451.43,0.00058082,120]
[379129664,1755151982636,-1799.4,0.00058082,120]
[379129665,1755151982646,-3657.22,0.00058082,120]
[379129666,1755151982655,-3965.56,0.00058082,120]
[379129667,1755151982665,-4912.44,0.00058082,120]
[379129668,1755151982677,-863.57,0.00058082,120]
[379129669,1755151982687,-865.8,0.00058082,120]
[379129670,1755151982696,-400.0,0.00058082,120]
[379129671,1755151982706,-2237.49,0.00058082,120]
[379129672,1755151982716,-400.0,0.00058082,120]
[379129673,1755151982725,-400.0,0.00058082,120]
[379129674,1755151982735,-1326.15,0.00058082,120]
[379129675,1755151982744,-1845.1,0.00058082,120]
[379129676,1755151982754,-1272.25,0.00058082,120]
[379129677,1755151982763,-2005.83,0.00058082,120]
[379129678,1755151982773,-400.0,0.00058082,120]
[379129679,1755151982782,-972.75,0.00058082,120]
[379129680,1755151982791,-2900.54,0.00058082,120]
[379129681,1755151982800,-1144.13,0.00058082,120]
[379129682,1755151982810,-400.0,0.00058082,120]
[379129683,1755151982819,-2076.9,0.00058082,120]
[379129684,1755151982829,-2172.78,0.00058082,120]
[379129685,1755151982838,-400.0,0.00058082,120]
[379129686,1755151982848,-400.0,0.00058082,120]
[379129687,1755151982857,-2988.88,0.00058082,120]
[379129688,1755151982867,-400.0,0.00058082,120]
[379129689,1755151982876,-404.44,0.00058082,120]
[379129690,1755151982886,-500.2,0.00058082,120]
[379129691,1755151982896,-569.34,0.00058082,120]
[379129692,1755151982905,-2059.24,0.00058082,120]
[379129693,1755151982917,-400.0,0.00058082,120]
[379129694,1755151982932,-2090.14,0.00058082,120]
[379129695,1755151982943,-756.39,0.00058082,120]
[379129696,1755151982958,-3724.14,0.00058082,120]
[379129697,1755151982967,-400.0,0.00058082,120]
[379129698,1755151982978,-400.0,0.00058082,120]
[379129699,1755151982988,-1288.69,0.00058082,120]
[379129700,1755151982999,-433.35,0.00058082,120]
[379129701,1755151983009,-2677.37,0.00058082,120]
[379129702,1755151983018,-642.07,0.00058082,120]
[379129703,1755151983028,-2430.89,0.00058082,120]
[379129704,1755151983039,-400.0,0.00058082,120]
[379129705,1755151983050,-2452.24,0.00058082,120]
[379129706,1755151983061,-455.81,0.00058082,120]
[379129707,1755151983072,-5534.33,0.00058082,120]
[379129708,1755151983082,-726.09,0.00058082,120]
[379129709,1755151983093,-439.2,0.00058082,120]
[379129710,1755151983104,-2660.6,0.00058082,120]
[379129711,1755151983115,-1671.75,0.00058082,120]
[379129712,1755151983126,-1395.59,0.00058082,120]
[379129713,1755151983136,-400.0,0.00058082,120]
[379129714,1755151983146,-3020.26,0.00058082,120]
[379129715,1755151983156,-400.0,0.00058082,120]
[379129716,1755151983166,-400.0,0.00058082,120]
[379129717,1755151983178,-400.0,0.00058082,120]
[379129718,1755151983188,-400.0,0.00058082,120]
[379129719,1755151983197,-400.0,0.00058082,120]
[379129720,1755151983207,-720.26,0.00058082,120]
[379129721,1755151983218,-400.0,0.00058082,120]
[379129722,1755151983234,-1133.0,0.00058082,60]
[379129723,1755151983254,-5312.63,0.00058082,120]
[379129724,1755151983273,-680.09,0.00058082,120]
[379129725,1755151983292,-3020.77,0.00058082,120]
[379129726,1755151983311,-400.0,0.00058082,120]
[379129727,1755151983329,-400.0,0.00058082,120]
[379129728,1755151983339,-4215.1,0.00058082,120]
[379129729,1755151983349,-1052.61,0.00058082,120]
[379129730,1755151983359,-703.6,0.00058082,120]
[379129731,1755151983369,-400.0,0.00058082,120]
[379129732,1755151983378,-400.0,0.00058082,120]
[379129733,1755151983389,-400.0,0.00058082,120]
[379129734,1755151983399,-400.0,0.00058082,120]
[379129735,1755151983410,-433.78,0.00058082,120]
[379129736,1755151983551,-627.09,0.00058082,120]
[379129737,1755151983562,-400.0,0.00058082,120]
[379129738,1755151983572,-3691.93,0.00058082,120]
[379129739,1755151983583,-722.15,0.00058082,120]
[379129740,1755151983593,-576.65,0.00058082,120]
[379129741,1755151983604,-443.52,0.00058082,120]
[379129742,1755151983614,-3887.95,0.00058082,120]
[379129743,1755151983626,-1655.04,0.00058082,120]
[379129744,1755151983636,-1229.44,0.00058082,120]
[379129745,1755151983647,-400.0,0.00058082,120]
[379129746,1755151983657,-400.0,0.00058082,120]
[379129747,1755151983667,-831.55,0.00058082,120]
[379129748,1755151983680,-1044.57,0.00058082,120]
[379129749,1755151983689,-937.86,0.00058082,120]
[379129750,1755151983700,-400.0,0.00058082,120]
[379129751,1755151983711,-400.0,0.00058082,120]
[379129752,1755151983721,-400.0,0.00058082,120]
[379129753,1755151983732,-400.0,0.00058082,120]
[379129754,1755151983743,-465.01,0.00058082,120]
[379129755,1755151983753,-400.0,0.00058082,120]
[379129756,1755151983764,-430.45,0.00058082,120]
[379129757,1755151983775,-400.0,0.00058082,120]
[379129758,1755151983786,-1145.39,0.00058082,120]
[379129759,1755151983797,-400.0,0.00058082,120]
[379129760,1755151983808,-400.0,0.00058082,120]
[379129761,1755151983819,-400.0,0.00058082,120]
[379129762,1755151983830,-727.77,0.00058082,120]
[379129763,1755151983840,-741.62,0.00058082,120]
[379129764,1755151983850,-721.15,0.00058082,120]
[379129765,1755151983860,-410.04212294,0.00058082,120]
[379129766,1755151983871,-819.26,0.00058082,120]
[379129767,1755151983880,-3128.9,0.00058082,120]
[379129768,1755151983890,-3068.16,0.00058082,120]
[379129769,1755151983900,-250.0,0.00058082,120]
[379129770,1755151983910,-400.0,0.00058082,120]
[379129771,1755151983920,-400.0,0.00058082,120]
[379129772,1755151983932,-400.0,0.00058082,120]
[379129773,1755151983942,-400.0,0.00058082,120]
[379129774,1755151983953,-809.93,0.00058082,120]
[379129775,1755151983966,-352.73,0.00058082,120]
[379129776,1755151983976,-611.84,0.00058082,120]
[379129777,1755151983985,-1496.83,0.00058082,15]
[379129778,1755151983996,-952.2,0.00058082,120]
[379129779,1755151984013,-1451.73,0.00058082,120]
[379129780,1755151984030,-400.0,0.00058082,120]
[379129781,1755151984043,-437.35,0.00058082,120]
[379129782,1755151984053,-400.0,0.00058082,120]
[379129783,1755151984064,-400.0,0.00058082,120]
[379129784,1755151984075,-1629.11,0.00058082,120]
[379129785,1755151984086,-661.99,0.00058082,120]
[379129786,1755151984097,-515.21,0.00058082,120]
[379129787,1755151984107,-400.0,0.00058082,120]
[379129788,1755151984118,-400.0,0.00058082,120]
[379129789,1755151984129,-1786.76,0.00058082,120]
[379129790,1755151984140,-1840.29,0.00058082,120]
[379129791,1755151984151,-400.0,0.00058082,120]
[379129792,1755151984161,-400.0,0.00058082,120]
[379129793,1755151984171,-2846.48,0.00058082,120]
[379129794,1755151984183,-400.0,0.00058082,120]
[379129795,1755151984193,-3003.6,0.00058082,120]
[379129796,1755151984204,-400.0,0.00058082,120]
[379129797,1755151984214,-1972.56,0.00058082,120]
[379129798,1755151984224,-445.62,0.00058082,120]
[379129799,1755151984234,-507.26,0.00058082,120]
[379129800,1755151984245,-400.0,0.00058082,120]
[379129801,1755151984255,-400.0,0.00058082,120]
[379129802,1755151984265,-400.0,0.00058082,120]
[379129803,1755151984276,-459.89,0.00058082,120]
[379129804,1755151984286,-1388.84,0.00058082,120]
[379129805,1755151984296,-1470.66,0.00058082,120]
[379129806,1755151984306,-400.0,0.00058082,120]
[379129807,1755151984316,-1279.9,0.00058082,120]
[379129808,1755151984327,-400.0,0.00058082,120]
[379129809,1755151984337,-400.0,0.00058082,120]
[379129810,1755151984347,-400.0,0.00058082,120]
[379129811,1755151984357,-1557.49,0.00058082,120]
[379129812,1755151984367,-4796.07,0.00058082,120]
[379129813,1755151984380,-400.0,0.00058082,120]
[379129814,1755151984398,-1397.98,0.00058082,120]
[379129815,1755151984408,-403.52277586,0.00058082,120]
[379129816,1755151984418,-1255.71,0.00058082,120]
[379129817,1755151984430,-3562.17,0.00058082,120]
[379129818,1755151984440,-400.0,0.00058082,120]
[379129819,1755151984450,-2231.09,0.00058082,120]
[379129820,1755151984466,-594.96,0.00058082,120]
[379129821,1755151984477,-334.51478449,0.00058082,120]
[379129822,1755151984487,-753.54,0.00058082,120]
[379129823,1755151984498,-411.57,0.00058082,120]
[379129824,1755151984509,-400.0,0.00058082,120]
[379129825,1755151984519,-400.0,0.00058082,120]
[379129826,1755151984530,-400.0,0.00058082,120]
[379129827,1755151984541,-2275.13,0.00058082,120]
[379129828,1755151984552,-400.0,0.00058082,120]
[379129829,1755151984562,-4179.34,0.00058082,120]
[379129830,1755151984574,-3602.81,0.00058082,120]
[379129831,1755151984585,-400.0,0.00058082,120]
[379129832,1755151984595,-697.24,0.00058082,120]
[379129833,1755151984606,-400.0,0.00058082,120]
[379129834,1755151984616,-1091.59,0.00058082,120]
[379129835,1755151984627,-1188.89,0.00058082,120]
[379129836,1755151984638,-400.0,0.00058082,120]
[379129837,1755151984649,-657.82,0.00058082,120]
[379129838,1755151984659,-1943.71,0.00058082,120]
[379129839,1755151984670,-400.0,0.00058082,120]
[379129840,1755151984682,-1947.43,0.00058082,120]
[379129841,1755151984692,-621.34,0.00058082,120]
[379129842,1755151984703,-400.0,0.00058082,120]
[379129843,1755151984714,-2885.05,0.00058082,120]
[379129844,1755151984724,-1136.53,0.00058082,120]
[379129845,1755151984734,-409.26,0.00058082,120]
[379129846,1755151984744,-282.96339023,0.00058082,120]
[379129847,1755151984755,-400.0,0.00058082,120]
[379129848,1755151984765,-874.51,0.00058082,120]
[379129849,1755151984775,-1523.92,0.00058082,120]
[379129850,1755151984786,-525.55,0.00058082,120]
[379129851,1755151984796,-400.0,0.00058082,120]
[379129852,1755151984805,-400.0,0.00058082,120]
[379129853,1755151984816,-2634.74,0.00058082,120]
[379129854,1755151984826,-400.0,0.00058082,120]
[379129855,1755151984837,-400.0,0.00058082,120]
[379129856,1755151984847,-569.15,0.00058082,120]
[379129857,1755151984858,-526.01,0.00058082,120]
[379129858,1755151984868,-1435.39,0.00058082,120]
[379129859,1755151984879,-400.0,0.00058082,120]
[379129860,1755151984889,-400.0,0.00058082,120]
[379129861,1755151984899,-400.0,0.00058082,120]
[379129862,1755151984915,-400.0,0.00058082,120]
[379129863,1755151984927,-3145.12,0.00058082,120]
[379129864,1755151984938,-400.0,0.00058082,120]
[379129865,1755151984951,-400.0,0.00058082,120]
[379129866,1755151984964,-973.72,0.00058082,120]
[379129867,1755151984977,-400.0,0.00058082,120]
[379129868,1755151984988,-1535.26,0.00058082,120]
[379129869,1755151984999,-400.0,0.00058082,120]
[379129870,1755151985010,-502.53,0.00058082,120]
[379129871,1755151985021,-400.0,0.00058082,120]
[379129872,1755151985033,-1237.4,0.00058082,120]